[Event "Schack-SM 2023: Junior-SM"]
[Site "Helsingborg Arena, Mellersta Stenbocksgatan 14, Helsingborg, Sweden"]
[Date "2023.07.01"]
[Round "1.5"]
[White "Dingertz, Erik"]
[Black "Lindholm, Gustav"]
[Result "1/2-1/2"]
[TimeControl "90 minutes for 40 moves + 30 minutes for the rest of the game + 30 seconds per move from move one."]
[WhiteElo "2090"]
[BlackElo "2155"]

1. c4 {[%clk 01:30:52]} {[%emt 00:00:08]} c6 {[%clk 01:30:35]} {[%emt
00:00:26]} 2. e4 {[%clk 01:31:15]} {[%emt 00:00:07]} d5 {[%clk 01:31:01]}
{[%emt 00:00:04]} 3. exd5 {[%clk 01:31:41]} {[%emt 00:00:04]} cxd5 {[%clk
01:31:26]} {[%emt 00:00:06]} 4. d4 {[%clk 01:32:06]} {[%emt 00:00:04]} Nf6
{[%clk 01:29:09]} {[%emt 00:02:45]} 5. Nc3 {[%clk 01:31:04]} {[%emt 00:01:34]}
Nc6 {[%clk 01:25:11]} {[%emt 00:04:28]} 6. Bg5 {[%clk 01:31:25]} {[%emt
00:00:09]} dxc4 {[%clk 01:13:09]} {[%emt 00:12:32]} 7. Bxc4 {[%clk 01:29:00]}
{[%emt 00:02:54]} e6 {[%clk 01:01:33]} {[%emt 00:12:07]} 8. Nf3 {[%clk
01:28:43]} {[%emt 00:00:47]} Be7 {[%clk 00:59:54]} {[%emt 00:02:09]} 9. O-O
{[%clk 01:28:37]} {[%emt 00:00:35]} O-O {[%clk 01:00:18]} {[%emt 00:00:07]} 10.
Re1 {[%clk 01:28:46]} {[%emt 00:00:21]} Nd5 {[%clk 00:49:52]} {[%emt 00:10:56]}
11. Bxe7 {[%clk 01:23:10]} {[%emt 00:06:06]} Ncxe7 {[%clk 00:49:41]} {[%emt
00:00:40]} 12. a3 {[%clk 01:01:18]} {[%emt 00:22:23]} b6 {[%clk 00:46:12]}
{[%emt 00:03:59]} 13. Bd3 {[%clk 00:46:17]} {[%emt 00:15:31]} Nf6 {[%clk
00:40:40]} {[%emt 00:06:02]} 14. Ne4 {[%clk 00:38:44]} {[%emt 00:08:02]} Ned5
{[%clk 00:36:04]} {[%emt 00:05:06]} 15. Ne5 {[%clk 00:38:54]} {[%emt 00:00:20]}
Bb7 {[%clk 00:35:32]} {[%emt 00:01:03]} 16. Qf3 {[%clk 00:33:45]} {[%emt
00:05:39]} Qe7 {[%clk 00:29:38]} {[%emt 00:06:24]} 17. Rac1 {[%clk 00:29:35]}
{[%emt 00:04:40]} Rac8 {[%clk 00:24:01]} {[%emt 00:06:07]} 18. Ng5 {[%clk
00:23:08]} {[%emt 00:06:58]} Rxc1 {[%clk 00:16:29]} {[%emt 00:08:02]} 19. Rxc1
{[%clk 00:23:31]} {[%emt 00:00:07]} Nb4 {[%clk 00:14:03]} {[%emt 00:02:55]} 20.
Qg3 {[%clk 00:19:36]} {[%emt 00:04:25]} Nxd3 {[%clk 00:12:59]} {[%emt
00:01:34]} 21. Nxd3 {[%clk 00:19:58]} {[%emt 00:00:09]} Nd5 {[%clk 00:08:12]}
{[%emt 00:05:17]} 22. Ne4 {[%clk 00:17:53]} {[%emt 00:02:34]} Rd8 {[%clk
00:06:47]} {[%emt 00:01:55]} 23. Ne5 {[%clk 00:14:37]} {[%emt 00:03:47]} Nf6
{[%clk 00:04:54]} {[%emt 00:02:22]} 24. Ng5 {[%clk 00:11:37]} {[%emt 00:03:31]}
Ne4 {[%clk 00:04:39]} {[%emt 00:00:44]} 25. Nxe4 {[%clk 00:11:53]} {[%emt
00:00:14]} Bxe4 {[%clk 00:05:05]} {[%emt 00:00:05]} 26. Qf4 {[%clk 00:10:13]}
{[%emt 00:02:09]} Ba8 {[%clk 00:02:51]} {[%emt 00:02:44]} 27. f3 {[%clk
00:07:02]} {[%emt 00:03:42]} f6 {[%clk 00:01:38]} {[%emt 00:01:42]} 28. Ng4
{[%clk 00:06:23]} {[%emt 00:01:09]} Bb7 {[%clk 00:00:58]} {[%emt 00:01:10]} 29.
h4 {[%clk 00:03:45]} {[%emt 00:03:08]} Rc8 {[%clk 00:00:55]} {[%emt 00:00:33]}
30. h5 {[%clk 00:02:06]} {[%emt 00:02:10]} Rxc1+ {[%clk 00:00:45]} {[%emt
00:00:41]} 31. Qxc1 {[%clk 00:02:33]} {[%emt 00:00:02]} Qd6 {[%clk 00:00:42]}
{[%emt 00:00:33]} 32. h6 {[%clk 00:00:53]} {[%emt 00:02:11]} Qxd4+ {[%clk
00:01:06]} {[%emt 00:00:06]} 33. Kh1 {[%clk 00:01:20]} {[%emt 00:00:03]} f5
{[%clk 00:00:37]} {[%emt 00:00:58]} 34. Qc7 {[%clk 00:01:38]} {[%emt 00:00:13]}
fxg4 {[%clk 00:00:32]} {[%emt 00:00:35]} 35. Qb8+ {[%clk 00:01:54]} {[%emt
00:00:13]} Kf7 {[%clk 00:00:54]} {[%emt 00:00:08]} 36. Qxb7+ {[%clk 00:02:20]}
{[%emt 00:00:04]} Kg6 {[%clk 00:01:08]} {[%emt 00:00:16]} 37. hxg7 {[%clk
00:02:45]} {[%emt 00:00:05]} Qxg7 {[%clk 00:01:17]} {[%emt 00:00:21]} 38. Qe4+
{[%clk 00:02:58]} {[%emt 00:00:17]} Kf7 {[%clk 00:01:16]} {[%emt 00:00:30]} 39.
fxg4 {[%clk 00:02:07]} {[%emt 00:01:22]} Qh6+ {[%clk 00:01:08]} {[%emt
00:00:37]} 40. Kg1 {[%clk 00:02:35]} {[%emt 00:00:03]} Qc1+ {[%clk 00:01:27]}
{[%emt 00:00:09]} 41. Kh2 {[%clk 00:03:03]} {[%emt 00:00:03]} Qh6+ {[%clk
00:00:52]} {[%emt 00:01:06]} 42. Kg3 {[%clk 00:02:41]} {[%emt 00:00:53]} Qg7
{[%clk 00:23:54]} {[%emt 00:07:28]} 43. b4 {[%clk 00:24:44]} {[%emt 00:08:27]}
Kf6 {[%clk 00:16:07]} {[%emt 00:08:14]} 44. Qf4+ {[%clk 00:16:16]} {[%emt
00:09:00]} Kg6 {[%clk 00:14:29]} {[%emt 00:02:08]} 45. Qe4+ {[%clk 00:13:43]}
{[%emt 00:03:03]} Kf6 {[%clk 00:14:47]} {[%emt 00:00:12]} 46. Qd4+ {[%clk
00:10:32]} {[%emt 00:03:41]} Kg6 {[%clk 00:12:30]} {[%emt 00:02:47]} 47. Qd3+
{[%clk 00:10:55]} {[%emt 00:00:06]} Kf6 {[%clk 00:12:38]} {[%emt 00:00:22]} 48.
Qd4+ {[%clk 00:09:25]} {[%emt 00:02:01]} 1/2-1/2

[Event "Schack-SM 2023: Mastarklassen"]
[Site "Helsingborg Arena, Mellersta Stenbocksgatan 14, Helsingborg, Sweden"]
[Date "2023.07.01"]
[Round "1.8"]
[White "Carlstrom, Niklas"]
[Black "Franzen, Per-Erik"]
[Result "0-1"]
[TimeControl "90 minutes for 40 moves + 30 minutes for the rest of games + 30 seconds per move from move one."]
[WhiteElo "2125"]
[BlackElo "2025"]

1. e4 {[%clk 01:30:40]} {[%emt 00:00:18]} c5 {[%clk 01:30:55]} {[%emt
00:00:06]} 2. Nc3 {[%clk 01:31:01]} {[%emt 00:00:09]} e6 {[%clk 01:30:36]}
{[%emt 00:00:50]} 3. g3 {[%clk 01:30:38]} {[%emt 00:00:51]} d6 {[%clk
01:28:51]} {[%emt 00:02:16]} 4. Bg2 {[%clk 01:30:54]} {[%emt 00:00:14]} Nf6
{[%clk 01:29:14]} {[%emt 00:00:08]} 5. Nge2 {[%clk 01:30:13]} {[%emt 00:01:09]}
Be7 {[%clk 01:29:00]} {[%emt 00:00:45]} 6. O-O {[%clk 01:29:48]} {[%emt
00:00:54]} O-O {[%clk 01:28:18]} {[%emt 00:01:14]} 7. h3 {[%clk 01:28:01]}
{[%emt 00:02:16]} a6 {[%clk 01:25:14]} {[%emt 00:03:34]} 8. d3 {[%clk
01:22:20]} {[%emt 00:06:10]} Qc7 {[%clk 01:20:11]} {[%emt 00:05:34]} 9. g4
{[%clk 01:19:32]} {[%emt 00:03:17]} Nc6 {[%clk 01:15:26]} {[%emt 00:05:16]} 10.
a4 {[%clk 01:17:16]} {[%emt 00:02:47]} Rb8 {[%clk 01:09:11]} {[%emt 00:06:45]}
11. Ng3 {[%clk 01:13:19]} {[%emt 00:04:25]} b5 {[%clk 01:00:33]} {[%emt
00:09:10]} 12. axb5 {[%clk 01:04:34]} {[%emt 00:09:14]} axb5 {[%clk 00:58:12]}
{[%emt 00:02:52]} 13. Be3 {[%clk 01:04:16]} {[%emt 00:00:46]} b4 {[%clk
00:50:19]} {[%emt 00:08:24]} 14. Nce2 {[%clk 01:04:12]} {[%emt 00:00:32]} Bb7
{[%clk 00:49:04]} {[%emt 00:01:46]} 15. g5 {[%clk 00:56:00]} {[%emt 00:08:41]}
Nd7 {[%clk 00:48:15]} {[%emt 00:01:21]} 16. f4 {[%clk 00:54:13]} {[%emt
00:02:16]} Rfe8 {[%clk 00:29:35]} {[%emt 00:19:11]} 17. f5 {[%clk 00:39:13]}
{[%emt 00:15:29]} exf5 {[%clk 00:23:53]} {[%emt 00:06:13]} 18. Nxf5 {[%clk
00:39:04]} {[%emt 00:00:38]} Bf8 {[%clk 00:20:59]} {[%emt 00:03:25]} 19. Nf4
{[%clk 00:33:55]} {[%emt 00:05:38]} Ne7 {[%clk 00:14:51]} {[%emt 00:06:39]} 20.
Ra7 {[%clk 00:17:15]} {[%emt 00:17:10]} Qb6 {[%clk 00:07:20]} {[%emt 00:08:02]}
21. Nxe7+ {[%clk 00:15:48]} {[%emt 00:01:56]} Bxe7 {[%clk 00:05:28]} {[%emt
00:02:22]} 22. Rxb7 {[%clk 00:14:16]} {[%emt 00:02:02]} Qxb7 {[%clk 00:05:04]}
{[%emt 00:00:54]} 23. e5 {[%clk 00:13:15]} {[%emt 00:01:30]} Qa7 {[%clk
00:04:31]} {[%emt 00:01:04]} 24. e6 {[%clk 00:12:47]} {[%emt 00:00:58]} fxe6
{[%clk 00:03:40]} {[%emt 00:01:21]} 25. Nxe6 {[%clk 00:12:57]} {[%emt
00:00:19]} Nf8 {[%clk 00:01:52]} {[%emt 00:02:19]} 26. Bd5 {[%clk 00:09:48]}
{[%emt 00:03:37]} Nxe6 {[%clk 00:01:29]} {[%emt 00:00:55]} 27. Bxe6+ {[%clk
00:09:09]} {[%emt 00:01:09]} Kh8 {[%clk 00:01:57]} {[%emt 00:00:02]} 28. g6
{[%clk 00:09:25]} {[%emt 00:00:13]} Bg5 {[%clk 00:01:24]} {[%emt 00:01:04]} 29.
Bxg5 {[%clk 00:01:35]} {[%emt 00:08:20]} Rxe6 {[%clk 00:01:47]} {[%emt
00:00:09]} 30. Qf3 {[%clk 00:01:56]} {[%emt 00:00:08]} hxg6 {[%clk 00:01:18]}
{[%emt 00:00:59]} 31. Qg4 {[%clk 00:01:43]} {[%emt 00:00:42]} Rbe8 {[%clk
00:01:00]} {[%emt 00:00:49]} 32. Qh4+ {[%clk 00:01:00]} {[%emt 00:01:13]} Kg8
{[%clk 00:01:29]} {[%emt 00:00:02]} 33. Qc4 {[%clk 00:01:19]} {[%emt 00:00:10]}
Kh7 {[%clk 00:00:56]} {[%emt 00:01:03]} 34. Qh4+ {[%clk 00:01:29]} {[%emt
00:00:19]} Kg8 {[%clk 00:01:25]} {[%emt 00:00:02]} 35. Qc4 {[%clk 00:01:51]}
{[%emt 00:00:08]} Qd7 {[%clk 00:01:12]} {[%emt 00:00:43]} 36. Qd5 {[%clk
00:00:42]} {[%emt 00:01:39]} Kh7 {[%clk 00:01:22]} {[%emt 00:00:20]} 37. Rf4
{[%clk 00:00:48]} {[%emt 00:00:23]} Re1+ {[%clk 00:00:52]} {[%emt 00:01:01]} 38.
Kf2 {[%clk 00:00:42]} {[%emt 00:00:35]} Qe6 {[%clk 00:01:02]} {[%emt 00:00:21]}
39. Qf3 {[%clk 00:00:42]} {[%emt 00:00:29]} Re2+ {[%clk 00:00:54]} {[%emt
00:00:40]} 40. Kf1 {[%clk 00:00:48]} {[%emt 00:00:23]} Re1+ {[%clk 00:00:58]}
{[%emt 00:00:26]} 41. Kf2 {[%clk 00:00:50]} {[%emt 00:00:27]} Qe2+ {[%clk
00:01:03]} {[%emt 00:00:27]} 42. Kg3 {[%clk 00:00:46]} {[%emt 00:00:32]} Re3
{[%emt 00:01:10]} 0-1

[Event "Schack-SM 2023: Sverigemastarklassen"]
[Site "Helsingborg Arena, Mellersta Stenbocksgatan 14, Helsingborg, Sweden"]
[Date "2023.07.01"]
[Round "1.4"]
[White "Kucuksari, Kaan"]
[Black "Johansson, Linus"]
[Result "1-0"]
[TimeControl "90 minutes for 40 moves + 30 minutes for the rest of the game + 30 seconds per move from move one."]
[WhiteTitle "IM"]
[BlackTitle "IM"]
[WhiteElo "2512"]
[BlackElo "2466"]

1. d4 {[%clk 01:30:56]} {[%emt 00:00:03]} Nf6 {[%clk 01:30:52]} {[%emt
00:00:08]} 2. c4 {[%clk 01:31:24]} {[%emt 00:00:03]} e6 {[%clk 01:31:17]}
{[%emt 00:00:05]} 3. g3 {[%clk 01:31:51]} {[%emt 00:00:04]} Bb4+ {[%clk
01:31:40]} {[%emt 00:00:06]} 4. Bd2 {[%clk 01:32:17]} {[%emt 00:00:05]} a5
{[%clk 01:31:58]} {[%emt 00:00:12]} 5. Bg2 {[%clk 01:32:41]} {[%emt 00:00:05]}
d6 {[%clk 01:32:10]} {[%emt 00:00:18]} 6. Nf3 {[%clk 01:30:17]} {[%emt
00:02:55]} Nbd7 {[%clk 01:32:32]} {[%emt 00:00:07]} 7. O-O {[%clk 01:28:22]}
{[%emt 00:02:25]} e5 {[%clk 01:32:56]} {[%emt 00:00:07]} 8. Nc3 {[%clk
01:25:09]} {[%emt 00:03:43]} O-O {[%clk 01:25:48]} {[%emt 00:07:37]} 9. Qc2
{[%clk 01:24:55]} {[%emt 00:00:46]} Re8 {[%clk 01:17:36]} {[%emt 00:08:41]} 10.
e4 {[%clk 01:23:45]} {[%emt 00:01:41]} exd4 {[%clk 01:15:46]} {[%emt 00:02:20]}
11. Nxd4 {[%clk 01:21:35]} {[%emt 00:02:41]} c6 {[%clk 01:15:13]} {[%emt
00:01:02]} 12. Rad1 {[%clk 01:18:04]} {[%emt 00:04:00]} Nb6 {[%clk 01:13:26]}
{[%emt 00:02:16]} 13. b3 {[%clk 01:15:58]} {[%emt 00:02:37]} Bg4 {[%clk
01:11:25]} {[%emt 00:02:31]} 14. f3 {[%clk 01:14:45]} {[%emt 00:01:43]} Bd7
{[%clk 01:11:49]} {[%emt 00:00:06]} 15. Rfe1 {[%clk 01:05:04]} {[%emt
00:10:11]} h6 {[%clk 01:06:09]} {[%emt 00:06:10]} 16. h3 {[%clk 00:59:59]}
{[%emt 00:05:35]} a4 {[%clk 00:50:10]} {[%emt 00:16:29]} 17. f4 {[%clk
00:59:06]} {[%emt 00:01:23]} axb3 {[%clk 00:49:36]} {[%emt 00:01:04]} 18. axb3
{[%clk 00:59:34]} {[%emt 00:00:03]} Ra5 {[%clk 00:48:27]} {[%emt 00:01:39]} 19.
Qd3 {[%clk 00:47:42]} {[%emt 00:12:22]} Nc8 {[%clk 00:37:07]} {[%emt 00:11:50]}
20. Nc2 {[%clk 00:41:16]} {[%emt 00:06:56]} Bc5+ {[%clk 00:30:58]} {[%emt
00:06:39]} 21. Kh2 {[%clk 00:39:31]} {[%emt 00:02:15]} Ba7 {[%clk 00:30:52]}
{[%emt 00:00:35]} 22. e5 {[%clk 00:29:50]} {[%emt 00:10:12]} dxe5 {[%clk
00:27:30]} {[%emt 00:03:53]} 23. Ne4 {[%clk 00:24:16]} {[%emt 00:06:04]} Ra2
{[%clk 00:14:16]} {[%emt 00:13:43]} 24. Nxf6+ {[%clk 00:24:00]} {[%emt
00:00:45]} Qxf6 {[%clk 00:14:08]} {[%emt 00:00:39]} 25. Qxd7 {[%clk 00:22:09]}
{[%emt 00:02:22]} Rd8 {[%clk 00:14:10]} {[%emt 00:00:27]} 26. fxe5 {[%clk
00:21:36]} {[%emt 00:01:02]} Qe7 {[%clk 00:11:33]} {[%emt 00:03:07]} 27. Qxe7
{[%clk 00:16:42]} {[%emt 00:05:25]} Nxe7 {[%clk 00:11:56]} {[%emt 00:00:07]} 28.
Be4 {[%clk 00:14:34]} {[%emt 00:02:39]} Bc5 {[%clk 00:11:20]} {[%emt 00:01:06]}
29. Be3 {[%clk 00:11:06]} {[%emt 00:03:58]} 1-0

[Event "Schack-SM 2023: Mastarklassen-elit"]
[Site "Helsingborg Arena, Mellersta Stenbocksgatan 14, Helsingborg, Sweden"]
[Date "2023.07.01"]
[Round "1.3"]
[White "Crevatin, Leo"]
[Black "Torngren, Gustav"]
[Result "1-0"]
[TimeControl "90 minutes for 40 moves + 30 minutes for the rest of games + 30 seconds per move from move one."]
[WhiteTitle "FM"]
[BlackTitle "FM"]
[WhiteElo "2265"]
[BlackElo "2297"]

1. d4 {[%emt 02:50:28]} Nf6 {[%emt 00:00:08]} 2. c4 {[%emt 00:00:06]} c6 {[%emt
00:00:05]} 3. Nf3 {[%emt 00:00:35]} d5 {[%emt 00:00:04]} 4. Qc2 {[%emt
00:01:20]} g6 {[%emt 00:02:35]} 5. Bf4 {[%emt 00:00:43]} Bf5 {[%emt 00:04:04]}
6. Qb3 {[%emt 00:01:36]} Qb6 {[%emt 00:00:17]} 7. c5 {[%emt 00:01:16]} Qxb3
{[%emt 00:02:47]} 8. axb3 {[%emt 00:00:02]} Na6 {[%emt 00:00:36]} 9. Nc3 {[%emt
00:04:55]} Nb4 {[%emt 00:30:16]} 10. Ra4 {[%emt 00:05:45]} Nc2+ {[%emt
00:03:42]} 11. Kd2 {[%emt 00:06:51]} Ng4 {[%emt 00:04:10]} 12. Bg3 {[%emt
00:09:22]} Bh6+ {[%emt 00:10:19]} 13. e3 {[%emt 00:05:07]} Ncxe3 {[%emt
00:07:18]} 14. fxe3 {[%emt 00:03:03]} Nxe3 {[%emt 00:00:08]} 15. Ke2 {[%emt
00:06:41]} O-O {[%emt 00:09:07]} 16. h3 {[%emt 00:05:41]} Bc2 {[%emt 00:02:23]}
17. Ra3 {[%emt 00:12:02]} f6 {[%emt 00:00:25]} 18. Bf2 {[%emt 00:03:37]} Nf5
{[%emt 00:01:13]} 19. g4 {[%emt 00:01:55]} Ng7 20. Ne1 {[%emt 00:08:05]} Be4
{[%emt 00:00:02]} 21. Nxe4 {[%emt 00:00:20]} dxe4 {[%emt 00:00:01]} 22. Be3
{[%emt 00:01:42]} Bxe3 {[%emt 00:00:02]} 23. Kxe3 {[%emt 00:00:07]} f5 {[%emt
00:00:55]} 24. Bc4+ {[%emt 00:01:04]} Kh8 {[%emt 00:00:22]} 25. Rf1 {[%emt
00:04:25]} g5 {[%emt 00:06:05]} 26. Ng2 {[%emt 00:06:14]} h5 {[%emt 00:02:16]}
27. Raa1 {[%emt 00:03:16]} h4 {[%emt 00:00:48]} 28. b4 {[%emt 00:02:16]} e6
{[%emt 00:08:30]} 29. b5 {[%emt 00:01:21]} Kh7 {[%emt 00:00:18]} 30. bxc6
{[%emt 00:01:16]} bxc6 {[%emt 00:00:02]} 31. b3 {[%emt 00:01:09]} Kg6 {[%emt
00:01:03]} 32. Be2 {[%emt 00:02:13]} Rab8 {[%emt 00:02:16]} 33. Rfb1 {[%emt
00:01:17]} e5 {[%emt 00:03:56]} 34. Ra6 {[%emt 00:01:06]} exd4+ {[%emt
00:00:54]} 35. Kxd4 {[%emt 00:00:04]} Ne6+ {[%emt 00:00:32]} 36. Kc4 {[%emt
00:01:02]} f4 {[%emt 00:00:24]} 37. Rxc6 {[%emt 00:00:14]} Rf6 {[%emt
00:00:07]} 38. Bd1 {[%emt 00:00:44]} a5 {[%emt 00:01:01]} 39. Bc2 {[%emt
00:00:26]} Kg7 {[%emt 00:00:32]} 40. Kc3 {[%emt 00:00:42]} e3 {[%emt 00:00:30]}
41. Bf5 {[%emt 00:05:52]} Nd8 {[%emt 00:15:39]} 42. Rc7+ {[%emt 00:03:14]} Nf7
{[%emt 00:03:41]} 43. Ne1 {[%emt 00:05:21]} Re8 {[%emt 00:04:16]} 44. Nf3
{[%emt 00:04:35]} e2 {[%emt 00:01:21]} 45. Kd2 {[%emt 00:01:27]} Kh6 {[%emt
00:00:35]} 46. Rd7 {[%emt 00:05:40]} Re3 {[%emt 00:05:13]} 47. Rd3 {[%emt
00:00:33]} Re8 {[%emt 00:00:07]} 48. Re1 {[%emt 00:01:19]} Rc6 {[%emt
00:00:07]} 49. Rxe2 {[%emt 00:00:59]} Rxe2+ {[%emt 00:00:42]} 50. Kxe2 {[%emt
00:00:02]} Rxc5 {[%emt 00:00:07]} 51. Rd7 {[%emt 00:00:46]} 1-0

[Event "Schack-SM 2023: Mastarklassen"]
[Site "Helsingborg Arena, Mellersta Stenbocksgatan 14, Helsingborg, Sweden"]
[Date "2023.07.01"]
[Round "1.9"]
[White "Persson, Lars 1971"]
[Black "Mashhadi, Peyman"]
[Result "0-1"]
[TimeControl "90 minutes for 40 moves + 30 minutes for the rest of games + 30 seconds per move from move one."]
[WhiteElo "1941"]
[BlackElo "2117"]

1. d3 {[%clk 01:30:50]} {[%emt 00:00:09]} g6 {[%clk 01:30:03]} {[%emt
00:00:57]} 2. e4 {[%clk 01:30:58]} {[%emt 00:00:23]} Bg7 {[%clk 01:30:02]}
{[%emt 00:00:30]} 3. c3 {[%clk 01:31:13]} {[%emt 00:00:15]} d5 {[%clk
01:27:47]} {[%emt 00:02:45]} 4. Nd2 {[%clk 01:31:26]} {[%emt 00:00:17]} Nc6
{[%clk 01:25:56]} {[%emt 00:02:21]} 5. Ngf3 {[%clk 01:30:35]} {[%emt 00:01:21]}
e5 {[%clk 01:23:13]} {[%emt 00:03:13]} 6. Be2 {[%clk 01:27:17]} {[%emt
00:03:48]} Nge7 {[%clk 01:22:08]} {[%emt 00:01:35]} 7. Qc2 {[%clk 01:21:44]}
{[%emt 00:06:03]} O-O {[%clk 01:18:01]} {[%emt 00:04:37]} 8. h4 {[%clk
01:19:08]} {[%emt 00:03:07]} Bg4 {[%clk 01:07:56]} {[%emt 00:10:34]} 9. Nf1
{[%clk 01:14:08]} {[%emt 00:05:30]} Qd7 {[%clk 00:59:36]} {[%emt 00:08:50]} 10.
Ne3 {[%clk 00:58:56]} {[%emt 00:15:41]} Be6 {[%clk 00:55:14]} {[%emt 00:04:53]}
11. h5 {[%clk 00:47:44]} {[%emt 00:11:42]} d4 {[%clk 00:48:18]} {[%emt
00:07:26]} 12. Nf1 {[%clk 00:38:47]} {[%emt 00:09:26]} f6 {[%clk 00:44:33]}
{[%emt 00:04:15]} 13. a3 {[%clk 00:30:04]} {[%emt 00:09:14]} a5 {[%clk
00:41:37]} {[%emt 00:03:26]} 14. N3h2 {[%clk 00:21:57]} {[%emt 00:08:37]} a4
{[%clk 00:36:13]} {[%emt 00:05:54]} 15. Qd1 {[%clk 00:17:09]} {[%emt 00:05:17]}
Na5 {[%clk 00:28:14]} {[%emt 00:08:30]} 16. Nd2 {[%clk 00:10:09]} {[%emt
00:07:30]} Kf7 {[%clk 00:23:02]} {[%emt 00:05:41]} 17. c4 {[%clk 00:08:28]}
{[%emt 00:02:12]} b5 {[%clk 00:22:04]} {[%emt 00:01:29]} 18. cxb5 {[%clk
00:04:58]} {[%emt 00:03:59]} Qxb5 {[%clk 00:21:10]} {[%emt 00:01:23]} 19. Bg4
{[%clk 00:05:10]} {[%emt 00:00:19]} Bxg4 {[%clk 00:19:00]} {[%emt 00:02:40]} 20.
Nxg4 {[%clk 00:04:51]} {[%emt 00:00:48]} Qxd3 {[%clk 00:16:40]} {[%emt
00:02:51]} 21. Rh3 {[%clk 00:05:10]} {[%emt 00:00:12]} Qb5 {[%clk 00:16:08]}
{[%emt 00:01:02]} 22. Nf3 {[%clk 00:03:54]} {[%emt 00:01:46]} Nb3 {[%clk
00:14:54]} {[%emt 00:01:43]} 23. Rb1 {[%clk 00:04:09]} {[%emt 00:00:15]} Nc5
{[%clk 00:13:50]} {[%emt 00:01:33]} 24. Nh6+ {[%clk 00:02:28]} {[%emt
00:02:12]} Ke8 {[%clk 00:12:54]} {[%emt 00:01:26]} 25. hxg6 {[%clk 00:02:41]}
{[%emt 00:00:18]} Nd3+ {[%clk 00:12:31]} {[%emt 00:00:52]} 26. Kf1 {[%clk
00:01:56]} {[%emt 00:01:15]} Nxc1+ {[%clk 00:12:10]} {[%emt 00:00:50]} 27. Kg1
{[%clk 00:02:14]} {[%emt 00:00:12]} Ne2+ {[%clk 00:12:22]} {[%emt 00:00:18]} 28.
Kh1 {[%clk 00:01:46]} {[%emt 00:00:58]} Nf4 {[%clk 00:12:05]} {[%emt 00:00:47]}
29. Rg3 {[%clk 00:01:57]} {[%emt 00:00:20]} Bxh6 {[%clk 00:12:04]} {[%emt
00:00:32]} 30. gxh7 {[%clk 00:00:44]} {[%emt 00:01:42]} Rh8 {[%clk 00:12:00]}
{[%emt 00:00:33]} 31. Qc2 {[%clk 00:00:34]} {[%emt 00:00:40]} c5 {[%clk
00:11:19]} {[%emt 00:01:11]} 0-1

[Event "Schack-SM 2023: Sverigemastarklassen"]
[Site "Helsingborg Arena, Mellersta Stenbocksgatan 14, Helsingborg, Sweden"]
[Date "2023.07.01"]
[Round "1.5"]
[White "Ernst, Thomas"]
[Black "Blomqvist, Erik"]
[Result "0-1"]
[TimeControl "90 minutes for 40 moves + 30 minutes for the rest of the game + 30 seconds per move from move one."]
[WhiteTitle "GM"]
[BlackTitle "GM"]
[WhiteElo "2288"]
[BlackElo "2500"]

1. e4 {[%clk 01:30:54]} {[%emt 00:00:05]} c5 {[%clk 01:30:53]} {[%emt
00:00:07]} 2. Nf3 {[%clk 01:31:13]} {[%emt 00:00:11]} e6 {[%clk 01:31:14]}
{[%emt 00:00:09]} 3. d4 {[%clk 01:31:32]} {[%emt 00:00:12]} cxd4 {[%clk
01:31:35]} {[%emt 00:00:09]} 4. Nxd4 {[%clk 01:31:54]} {[%emt 00:00:08]} a6
{[%clk 01:31:57]} {[%emt 00:00:08]} 5. Bd3 {[%clk 01:31:53]} {[%emt 00:00:31]}
Bc5 {[%clk 01:32:13]} {[%emt 00:00:13]} 6. Nb3 {[%clk 01:31:46]} {[%emt
00:00:37]} Ba7 {[%clk 01:32:30]} {[%emt 00:00:13]} 7. O-O {[%clk 01:30:39]}
{[%emt 00:01:37]} Nc6 {[%clk 01:32:37]} {[%emt 00:00:23]} 8. Qg4 {[%clk
01:28:40]} {[%emt 00:02:28]} Qf6 {[%clk 01:32:11]} {[%emt 00:00:57]} 9. Nc3
{[%clk 01:26:44]} {[%emt 00:02:27]} Nge7 {[%clk 01:31:58]} {[%emt 00:00:43]} 10.
Qe2 {[%clk 01:21:18]} {[%emt 00:05:55]} O-O {[%clk 01:19:03]} {[%emt 00:13:25]}
11. Be3 {[%clk 01:21:19]} {[%emt 00:00:29]} d5 {[%clk 01:17:31]} {[%emt
00:02:02]} 12. Bxa7 {[%clk 01:13:27]} {[%emt 00:08:23]} Rxa7 {[%clk 01:17:53]}
{[%emt 00:00:08]} 13. exd5 {[%clk 01:13:41]} {[%emt 00:00:16]} exd5 {[%clk
01:18:02]} {[%emt 00:00:21]} 14. Rfe1 {[%clk 01:10:11]} {[%emt 00:03:59]} Rd8
{[%clk 01:14:06]} {[%emt 00:04:26]} 15. a4 {[%clk 00:52:50]} {[%emt 00:17:52]}
b6 {[%clk 01:05:08]} {[%emt 00:09:28]} 16. Rad1 {[%clk 00:52:52]} {[%emt
00:00:27]} h6 {[%clk 01:03:24]} {[%emt 00:02:15]} 17. Rd2 {[%clk 00:47:25]}
{[%emt 00:05:57]} Kf8 {[%clk 00:59:36]} {[%emt 00:04:17]} 18. Red1 {[%clk
00:41:19]} {[%emt 00:06:36]} Re8 {[%clk 00:41:00]} {[%emt 00:19:06]} 19. Qf1
{[%clk 00:40:53]} {[%emt 00:00:56]} Nb4 {[%clk 00:30:40]} {[%emt 00:10:51]} 20.
Be2 {[%clk 00:38:51]} {[%emt 00:02:31]} Nec6 {[%clk 00:22:15]} {[%emt
00:08:56]} 21. Bf3 {[%clk 00:34:21]} {[%emt 00:04:59]} Bf5 {[%clk 00:20:20]}
{[%emt 00:02:26]} 22. Nxd5 {[%clk 00:31:12]} {[%emt 00:03:39]} Nxd5 {[%clk
00:19:30]} {[%emt 00:01:19]} 23. Bxd5 {[%clk 00:27:46]} {[%emt 00:03:56]} Nb4
{[%clk 00:19:11]} {[%emt 00:00:49]} 24. Qc4 {[%clk 00:24:22]} {[%emt 00:03:54]}
a5 {[%clk 00:08:17]} {[%emt 00:11:25]} 25. Nd4 {[%clk 00:20:41]} {[%emt
00:04:09]} Rae7 {[%clk 00:06:52]} {[%emt 00:01:56]} 26. Rf1 {[%clk 00:17:13]}
{[%emt 00:03:58]} Bd7 {[%clk 00:04:51]} {[%emt 00:02:32]} 27. Bf3 {[%clk
00:11:33]} {[%emt 00:06:09]} Qg5 {[%clk 00:05:07]} {[%emt 00:00:14]} 28. Nb3
{[%clk 00:11:23]} {[%emt 00:00:41]} Bxa4 {[%clk 00:05:20]} {[%emt 00:00:18]} 29.
Rd6 {[%clk 00:10:41]} {[%emt 00:01:11]} Bb5 {[%clk 00:05:31]} {[%emt 00:00:19]}
30. h4 {[%clk 00:10:52]} {[%emt 00:00:19]} Qe5 {[%clk 00:04:32]} {[%emt
00:01:28]} 31. Rd5 {[%clk 00:10:24]} {[%emt 00:00:59]} Bxc4 {[%clk 00:04:46]}
{[%emt 00:00:16]} 0-1